Cogmind - Beta 16 --- EXPLORER MODE // 2025.11.14 @ 11:47:58 Player: K.K.Y. Result: Destroyed by GX-D37(R) with Subdweller Laser Performance ------------- Evolutions (0) 0 Regions Visited (2) 400 Robots Destroyed (30) 150 Value Destroyed (891) 891 Prototype IDs (0) 0 Alien Tech Used (0) 0 Bonus (-46) -46 TOTAL SCORE: 1395 Bonus ------- Friendly Fire -46 Cogmind --------- Core Integrity 0/250 Matter 143/300 Energy 170/170 System Corruption 0% Temperature Cool (6) Movement Treading (160) Location -10/Subcaves Parts ------- > --- POWER (1) -------- Makeshift Power Source > --- PROPULSION (3) --- Light Treads Spiked Treads Spiked Treads > --- UTILITY (2) ------ Medium Storage Unit Makeshift System Shield > --- WEAPON (2) ------- Subdweller Shrapnel Launcher > --- INVENTORY (10) --- Light Treads High-capacity Storage Unit High-capacity Storage Unit Humpback Battle Cannon Datajack Mining Laser Multitool Peak State ------------ > --- POWER ------------ Makeshift Power Source > --- PROPULSION ------- Light Treads Spiked Treads Spiked Treads > --- UTILITY ---------- Medium Storage Unit Makeshift System Shield > --- WEAPON ----------- Subdweller Shrapnel Launcher > --- INVENTORY -------- Light Treads High-capacity Storage Unit High-capacity Storage Unit Humpback Battle Cannon Datajack Mining Laser Multitool [Rating: 17] Favorites ----------- Power Ion Engine Engine Ion Engine Propulsion Light Treads Treads Light Treads Utility Medium Storage Unit Storage Medium Storage Unit Hackware Makeshift System Shield Weapon Medium Laser Energy Gun Medium Laser Energy Cannon Subdweller Beam Cannon Ballistic Gun Assault Rifle Ballistic Cannon Battle Cannon Launcher Subdweller Shrapnel Launcher Special Weapon Mining Laser Build | -11 -10 -10 ------- Run | Yrd Mat Sub Slots Evolved 1 | . 1 . Power . | . . . Propulsion 1 | . 1 . Utility . | . . . Weapon . | . . . Parts Attached 19 | 5 1 13 Power 2 | 1 . 1 Engine 2 | 1 . 1 Core . | . . . Reactor . | . . . Propulsion 8 | 2 1 5 Treads 8 | 2 1 5 Leg . | . . . Wheel . | . . . Hover . | . . . Flight . | . . . Utility 2 | 1 . 1 Device . | . . . Storage 1 | 1 . . Processor . | . . . Hackware 1 | . . 1 Protection . | . . . Artifact . | . . . Weapon 7 | 1 . 6 Energy Gun 2 | 1 . 1 Energy Cannon 1 | . . 1 Ballistic Gun 1 | . . 1 Ballistic Cannon 1 | . . 1 Launcher 1 | . . 1 Special Weapon 1 | . . 1 Impact Weapon . | . . . Slashing Weapon . | . . . Piercing Weapon . | . . . Special Melee Weapon . | . . . Unidentified Prototypes . | . . . Parts Lost 6 | . . 6 Power 1 | . . 1 Propulsion 3 | . . 3 Utility . | . . . Weapon 2 | . . 2 Highest Loss Streak 2 | . . 2 To Critical Strikes 1 | . . 1 Average Backups 6 | 2 4 8 Power . | . . . Propulsion . | . . . Utility 1 | . . 2 Weapon 3 | . 2 3 Tool/Special . | . . . Unused Backups 6 | . . 6 Power . | . . . Propulsion . | . . . Utility 3 | . . 3 Weapon 1 | . . 1 Tool/Special 2 | . . 2 Average Slot Usage (%) 76 | . 73 78 Engine 4 | . 11 . Treads 36 | . 36 36 Storage 12 | . 12 12 Hackware 3 | . . 5 Energy Gun 10 | . 11 9 Energy Cannon 2 | . . 3 Ballistic Gun 4 | . . 6 Ballistic Cannon 1 | . . 2 Peak Build Rating 17 | 5 7 17 Average Rating 8 | 1 6 10 On Entrance 4 | . 5 7 Avg Prop Armor Cover (%) . | . . . Naked Turns . | . . . Heaviest Build 22 | 17 17 22 Greatest Support 60 | 40 60 60 Greatest Overweight (x) 3 | . 3 . Average Overweight (x) . | . . . Largest Inventory Capacity 10 | 10 10 10 Average Capacity 9 | 6 10 10 Most Carried 10 | 5 10 10 Average Carried 7 | 2 4 8 Final Capacity 10 | 10 10 10 Final Carried 10 | . 10 9 Class Distribution -------------------- 100% | Hacker-Mutant Dominant Class ---------------- Hacker-Mutant | -10/Materials Hacker-Mutant | -10/Subcaves Resources | -11 -10 -10 ----------- Run | Yrd Mat Sub Matter Collected 629 | 250 60 319 Remotely . | . . . Salvage Created 1122 | . 514 608 Parts 52 | . 16 36 Haulers Intercepted 2 | . 2 . Recyclers Shooed 1 | . 1 . Parts Field Recycled . | . . . Retrieved Matter . | . . . Parts Self-Destructed . | . . . Prevented . | . . . Parts Restored . | . . . Kills | -11 -10 -10 ------- Run | Yrd Mat Sub Combat Hostiles Destroyed 23 | . 6 17 Guns 12 | . 3 9 Cannons 5 | . . 5 AOE 3 | . . 3 Classes Destroyed 8 | . 4 4 Hauler 2 | . 2 . Recycler 1 | . 1 . Watcher 3 | . 3 . Swarmer 3 | . . 3 Grunt 6 | . 6 . Artisan 1 | . . 1 Subdweller 14 | . . 14 Zionite 1 | . . 1 Best Kill Streak 4 | . 2 4 Combat Bots Only 4 | . 2 4 Max Kills in Single Turn 2 | . 1 2 Gunslinging . | . . . Exploded 1 | . . 1 Melee . | . . . Uniques/NPCs Destroyed . | . . . Combat | -11 -10 -10 -------- Run | Yrd Mat Sub Hostile Shots Fired 169 | . 60 109 Missed 36 | . 17 19 Hits 133 | . 43 90 Projectile 133 | . 43 90 Critical Strikes 4 | . . 4 Damage Taken 1459 | . 362 1097 Core 256 | . 102 154 Absorbed by Shields . | . . . Ignored by Resistances 883 | . 223 660 Core Remaining (%) 100 | 100 . . Volleys Fired 160 | . 78 82 Largest 2 | . 1 2 Hottest 150 | . 50 150 Shots Fired 212 | . 78 134 Gun 170 | . 78 92 Cannon 30 | . . 30 Launcher 9 | . . 9 Special 3 | . . 3 Kinetic 58 | . . 58 Thermal 140 | . 78 62 Explosive . | . . . Electromagnetic 14 | . . 14 Robot Hit Streak 24 | . 22 24 Robot Miss Streak 3 | . 3 2 Penetration Max . | . . . Secondary Targets . | . . . Shots Hit Robots 149 | . 67 82 Core Hits 53 | . 19 34 Critical Kills . | . . . Critical Parts Destroyed . | . . . Critical Strikes 9 | . 6 3 Burn 9 | . 6 3 Melee Attacks . | . . . Impact . | . . . Slashing . | . . . Piercing . | . . . Sneak Attacks . | . . . Combat Hostiles . | . . . Follow-up Attacks . | . . . Damage Inflicted 2464 | . 845 1619 Guns 1545 | . 845 700 Cannons 276 | . . 276 Explosions 643 | . . 643 Melee . | . . . Ramming . | . . . Kinetic 926 | . . 926 Thermal 1470 | . 845 625 Explosive . | . . . Electromagnetic 68 | . . 68 Impact . | . . . Slashing . | . . . Piercing . | . . . Highest Corruption . | . . . Average Corruption . | . . . Corruption Purged . | . . . Corruption Blocked . | . . . Overload Shots . | . . . Overflow Damage . | . . . Projectiles . | . . . Explosions . | . . . Melee . | . . . Knockbacks . | . . . Impact . | . . . Kinetic . | . . . Secondary . | . . . Self-Inflicted Damage 13 | . . 13 Shots 2 | . . 2 Rammed 1 | . 1 . Targets Rammed 1 | . 1 . Kicked . | . . . Crushed . | . . . Highest Temperature 236 | . 236 . Average Temperature 82 | . 82 . Received Heat Transfer 618 | . 321 297 Effects 1 | . 1 . Interference 1 | . 1 . Siege Activations . | . . . Martial Activations . | . . . Shielding Activations . | . . . Robots Disrupted . | . . . Combat Hostiles . | . . . Robots Corrupted . | . . . Combat Hostiles . | . . . Parts Fried . | . . . Impact Corruptions . | . . . Robots Melted 5 | . 5 . Combat Hostiles 3 | . 3 . Parts Melted 13 | . 9 4 Heat Transferred 4551 | . 2923 1628 Parts Sabotaged . | . . . Parts Stolen . | . . . Parts Stripped . | . . . Power Chain Reactions . | . . . Alert | -11 -10 -10 ------- Run | Yrd Mat Sub Maximum Alert Level . | . . . Low Security (%) 100 | 100 100 . Level 1 . | . . . Level 2 . | . . . Level 3 . | . . . Level 4 . | . . . Level 5 . | . . . High Security . | . . . Max Security . | . . . Peak Influence 50 | . 50 . Initial . | . . . Average 2 | . 2 . Influence Increases 355 | . 190 165 Destroy 0b10 Robot/C 180 | . 120 60 Destroy 0b10 Robot/NC 30 | . 30 . Destroy Leader 40 | . 40 . Lose Combat Pursuer 105 | . . 105 Influence Decreases 355 | . 190 165 Time Decay 355 | . 190 165 Squads Dispatched . | . . . Investigation . | . . . Extermination . | . . . Reinforcement . | . . . Assault . | . . . Garrison . | . . . Intercept . | . . . Searches Triggered . | . . . Construction Impeded . | . . . Haulers Reinforced . | . . . Active Scanning Responses . | . . . Cargo Convoy Interrupts . | . . . Stealth | -11 -10 -10 --------- Run | Yrd Mat Sub Distress Signals . | . . . Communications Jammed . | . . . Distress Signals . | . . . Times Spotted 40 | . 15 25 Peak Tracking Total 6 | . 2 6 Tactical Retreats 2 | . . 2 Traps | -11 -10 -10 ------- Run | Yrd Mat Sub Traps Triggered 4 | . 4 . Indirectly . | . . . Trap Hack Attempts . | . . . Triggered . | . . . Disarmed . | . . . Reprogrammed . | . . . Reused . | . . . Traps Extracted . | . . . Installed . | . . . Triggered . | . . . Machines | -11 -10 -10 ---------- Run | Yrd Mat Sub Machines Disabled . | . . . Max in Single Turn . | . . . Machines Repaired . | . . . Machines Dismantled . | . . . Machines Sabotaged . | . . . Overloaded Fab Kills . | . . . Hacking | -11 -10 -10 --------- Run | Yrd Mat Sub Machines Accessed 1 | . . 1 Terminals . | . . . Fabricators . | . . . Repair Stations . | . . . Recycling Units . | . . . Scanalyzers . | . . . Garrison Access . | . . . Total Hacks 4 | . . 4 Successful 4 | . . 4 Failed . | . . . Catastrophic . | . . . Database Lockouts . | . . . Manual . | . . . Terminals . | . . . Fabricators . | . . . Repair Stations . | . . . Recycling Units . | . . . Scanalyzers . | . . . Garrison Access . | . . . Terminal Hacks 4 | . . 4 Record 4 | . . 4 Fabricator Hacks . | . . . Repair Station Hacks . | . . . Recycling Unit Hacks . | . . . Scanalyzer . | . . . Garrison Access Hacks . | . . . Unauthorized Hacks . | . . . Terminals . | . . . Fabricators . | . . . Repair Stations . | . . . Recycling Units . | . . . Scanalyzers . | . . . Garrison Access . | . . . Data Cores Recovered . | . . . Used . | . . . Hacking Detections . | . . . Full Trace Events . | . . . Feedback Events . | . . . Feedback Blocked . | . . . Robot Schematics Acquired . | . . . Robots Built . | . . . Authchips . | . . . Time . | . . . Total Robot Build Rating . | . . . Part Schematics Acquired . | . . . Parts Built . | . . . Authchips . | . . . Time . | . . . Total Part Build Rating . | . . . Part Studies Acquired . | . . . Parts Repaired . | . . . Time . | . . . Parts Recycled . | . . . Recycled Matter . | . . . Retrieved Matter . | . . . Retrieved Components . | . . . Parts Scanalyzed . | . . . Part Schematics Acquired . | . . . Parts Damaged . | . . . Bothacking | -11 -10 -10 ------------ Run | Yrd Mat Sub Used RIF Installer . | . . . Robots Hacked . | . . . Non-combat . | . . . Combat . | . . . Robot Hacks Applied . | . . . Relay Couplers Released . | . . . Fabnet Peak Effective % . | . . . Robots Rewired . | . . . Allies Hacked . | . . . Hacks Repelled . | . . . Allies | -11 -10 -10 -------- Run | Yrd Mat Sub Total Allies . | . . . Largest Group . | . . . Highest-Rated Group . | . . . Highest-Rated Ally . | . . . Total Orders . | . . . Ally Attacks . | . . . Total Damage . | . . . Kills . | . . . Allies Corrupted . | . . . Allies Melted . | . . . Intel | -11 -10 -10 ------- Run | Yrd Mat Sub Active Infowar (turns) . | . . . Robot Analysis Total . | . . . Derelict Logs Recovered . | . . . Drone Launches . | . . . Drone Recoveries . | . . . Exploration | -11 -10 -10 ------------- Run | Yrd Mat Sub Turns Passed 3598 | 33 1347 2218 Spaces Moved 1814 | 36 655 1123 Core 31 | 30 1 . Treads 1783 | 6 654 1123 Legs . | . . . Wheels . | . . . Hover . | . . . Flight . | . . . Fastest Speed 50 | 50 160 160 Average Speed 158 | 68 160 160 Slowest Speed 200 | 160 200 160 Overloaded Moves . | . . . Propulsion Burnouts . | . . . Robots Hopped . | . . . Potential Cave-ins 2 | . . 2 Cave-ins Triggered . | . . . Exploration Rate (%) 52 | 3 86 69 Regions Visited 2 Branch Regions 1 Pre-discovered Areas 2 | . . 2 Known Exits Taken 2 | 1 1 . Unknown Exits Taken . | . . . Scrap Searched 4 | . . 4 Spaces Dug 3 | . . 3 Terrain Destroyed 113 | . . 113 Melee . | . . . Projectile 4 | . . 4 AOE 109 | . . 109 Terrain Rammed . | . . . Walls Destroyed . | . . . Machines Disabled . | . . . Actions | -11 -10 -10 --------- Run | Yrd Mat Sub Total 2320 | 45 873 1402 Wait 291 | . 123 168 Move 1812 | 35 654 1123 Hop . | . . . Pick Up 24 | 5 11 8 Fast Attach 6 | . 5 1 Attach 13 | 5 1 7 Detach . | . . . Swap 8 | . . 8 Drop 5 | . . 5 Fire 160 | . 78 82 Melee . | . . . Ram . | . . . Kick . | . . . Crush 1 | . 1 . Escape Stasis . | . . . Rewire . | . . . Trap . | . . . Miscellaneous . | . . . Route ------- -11/Scrapyard -10/Materials (discovered 5 exits: *Mat x3 / *Min / *Sub) -10/Subcaves (discovered 3 exits: *Mat x2 / *Rec) History --------- Turn | Location | Event 13 | -11/Scrapyard | Identified exit to Materials 13 | -11/Scrapyard | Discovered exit to Materials (range 14) 34 | -11/Scrapyard | Entered Materials 34 | -10/Materials | Evolved 1 slot: Propulsion x1 312 | -10/Materials | Build established: Hacker-Mutant 525 | -10/Materials | Identified exit to Materials 525 | -10/Materials | Discovered exit to Materials (range 9) 728 | -10/Materials | Discovered exit to Materials (range 10) 899 | -10/Materials | Identified exit to Mines 899 | -10/Materials | Discovered exit to Mines (range 11) 1079 | -10/Materials | Discovered exit to Materials (range 14) 1372 | -10/Materials | Identified exit to Subcaves 1372 | -10/Materials | Discovered exit to Subcaves (range 8) 1381 | -10/Materials | Entered Subcaves 1382 | -10/Subcaves | Approached by a straggling Scientist 1392 | -10/Subcaves | A swath of the cavern ceiling suddenly collapsed 1444 | -10/Subcaves | Core integrity fell below 50% 1647 | -10/Subcaves | Visited Clippyterm 1652 | -10/Subcaves | Learned location of Deep Caves (-7) 1652 | -10/Subcaves | Identified exit to Recycling 1901 | -10/Subcaves | A swath of the cavern ceiling suddenly collapsed 2274 | -10/Subcaves | Ambushed by angry Subdweller bent on revenge 2496 | -10/Subcaves | Shifting Twisted Machinery released Multitool 2701 | -10/Subcaves | Identified exit to Materials 2701 | -10/Subcaves | Discovered exit to Materials (range 13) 2935 | -10/Subcaves | Shifting Twisted Machinery released Spk. Treads 2971 | -10/Subcaves | Shifting Twisted Machinery released Spk. Treads 3172 | -10/Subcaves | Discovered exit to Materials (range 9) 3176 | -10/Subcaves | Learned location of Zion (-7) 3176 | -10/Subcaves | Met a Zionite searching for "candidates" 3563 | -10/Subcaves | Core integrity fell below 20% 3567 | -10/Subcaves | Ambushed by Subdweller buried in earth 3599 | -10/Subcaves | Destroyed by GX-D37(R) with Subdweller Laser Last Messages --------------- 03349_ Subatomizers dissect the Flight Unit. 03396_ Acquired 7 matter. 03542_ QT-9QF(R) destroyed. 03544_ Sub. Beam Cannon shoots sparks and powers down. 03546_ Dropped Broken Sub. Beam Cannon. 03548_ Acquired 10 matter. 03550_ Acquired 20 matter. 03553_ H9-TAU(R) destroyed. 03554_ DJ-GSV(R): "ARGHSUB!" 03558_ Critical hit (Destroy). 03558_ Riot Gun destroyed. 03559_ KW-CDN(R): "ARGHSUB!" 03561_ Destroyed Scrap Shield. 03563_ DJ-GSV(R) destroyed. 03566_ GX-D37(R): "ARGHSUB!" 03568_ 30-5GO(R): "ARGHSUB!" 03572_ Acquired 18 matter. 03577_ Acquired Mak. Power Source. 03598_ KW-CDN(R) destroyed. Map ----- +----------------------------------------------------+ | ?????????????????????????????????????????????????? | | ?????????????????????????????????????????????????? | | ?????????????????????????????????????????????????? | | ?????????????????????????????????????????????????? | | ??????????????????????????????????#??????????????? | | ?????????????????????????????????? ??????????????? | | ????????????????????????????????? #?????????????? | | ????????????????????????????????? ##??##???????? | | ????????????????????????#####???? ### #???????? | | ???????????????????????## ???? ##??????? | | ???????????????????????# ????? ##?????? | | ???????????????????????# ###?? #?????? | | ????????????????????????? ##?# #??##?? | | ?????????????????????????? ### ### ## | | ???????????????????????????# " | | ???????????????????????????# " | | ???????????????##?#######?## " | | ???????????????# ## #?# " | | ???????????????# ?## "" | | ???????????????# #?# " | | ????????????????? #?### #???? | | ??????????????????# ?#### ####? | | ?????????????????##; ### ## ## | | ????????????????## ; ;# ### # | | ????????????????#;;; ;; #?## ## | | ???????????????#; % @ ###### #### #? | | ???????????????# R #??####### ## | | ???????????????#;] ;; ## #???### | | ???????????????#;= ;##; ### #??## | | ??????????######; ##?###; #?#####??# ## | | ????????### ;; = #???### #??????# ### | | ????????# " ##?????## ????### ### | | ????????# #??????## #?????## #?# | | ???????# #????????# ##??????####?# | | ???? " #?????????####????????????# | | ?? ##" #?????????????????????????## | | ??????# ??????????????????????????## | | ??????## #??????????????????????????## | | ???????#"" #???????????????????????????## | | ?????? ##????????????????????????????# | | ?????## & #?????????????????????????????? | | ??????# ###?????????????????????????????? | | ??????* ????????????????????????????????? | | ??????? ????????????????????????????????? | | ????????? # ???????????????????????????????## | | ???????????? ##???????????????????????????????# | | ??????????????#????????????????????????????????## | | ???????????????????????????????????????????????# | | ???????#?????????#####????????????????????????## | | ???????# ???????# #???????????????????????## | +----------------------------------------------------+ Best States ------------- Heat Dissipation 25 Energy Generation 15 Energy Capacity 250 Matter Stores 300 Matter Capacity 300 Sight Range 16 Terrain Scan Density 10 Resistance: KI 35 Resistance: TH 35 Resistance: EX 35 Resistance: EM 35 Resistance: I 35 Resistance: S 35 Resistance: P 35 Evasion (%) 50 Recoil Reduction 3 Offensive Hacking 20 Defensive Hacking 11 Item Schematics ----------------- None Robot Schematics ------------------ None Fabricated ------------ Nothing Repaired ---------- Nothing Studied --------- None Alien Tech Used ----------------- None Achievements -------------- None Challenges ------------ None Game ------ Seed VampiricBurstFrame Manual? 0 Play Time 00:17:20 Cumulative 91.4 hours Start 2025.11.14 @ 11:32:07 End 2025.11.14 @ 11:47:58 Sessions 1 Manual Loads 0 Difficulty Explorer Special Mode None Game No. 100 Rogue 0 Adventurer 0 Explorer 100 Win Type - Total 0 Types 0/0/0/0/0/0/0/0/0/0 Lore% 58 Gallery% 56 Achievement% 44 Wizard Run 0 Options --------- Layout 1 ASCII 0 Keyboard 0 Movement Mouse Keybinds 0 Fullscreen 1 Font 24/Smallcaps Map View 50x35 Zoom Use 0% Tactical HUD 1 Map Filters NONE Filters NONE Steam 1 RUN: 84b48131-cc0a-45a2-82c7-697faf228e31